bitfinex/quotes_BTCUSD_20250218
["timestamp","ask_amount","ask_price","bid_price","bid_amount"]
[1739879084798,0.32586256,95832.0,95831.0,0.00078447]
[1739879084964,6.05298356,95832.0,95831.0,0.00078447]
[1739879085497,5.95836756,95832.0,95831.0,0.00078447]
[1739879085707,5.97472179,95832.0,95831.0,0.00078447]
[1739879089637,5.86018679,95832.0,95831.0,0.00078447]
[1739879092025,5.74544879,95832.0,95831.0,0.00078447]
[1739879092782,5.72909456,95832.0,95831.0,0.00078447]
[1739879095831,5.74544883,95832.0,95831.0,0.00078447]
[1739879102720,5.82239175,95832.0,95831.0,0.00078447]
[1739879102928,5.80603748,95832.0,95831.0,0.00078447]
[1739879103916,5.72009456,95832.0,95831.0,0.00078447]
[1739879104130,5.73109456,95832.0,95831.0,0.00078447]
[1739879104992,5.72609456,95832.0,95831.0,0.00078447]
[1739879105216,5.73009456,95832.0,95831.0,0.00078447]
[1739879105770,5.74044911,95832.0,95831.0,0.00078447]
[1739879106617,5.74544911,95832.0,95831.0,0.00078447]
[1739879107019,5.68822611,95832.0,95831.0,0.00078447]
[1739879107520,4.86176911,95832.0,95831.0,0.00078447]
[1739879110779,4.54993754,95832.0,95831.0,0.00078447]
[1739879111272,4.70646054,95832.0,95831.0,0.00078447]
[1739879112104,4.46902504,95832.0,95831.0,0.00078447]
[1739879112337,4.57667094,95832.0,95831.0,0.00078447]
[1739879112757,4.58977747,95832.0,95831.0,0.00078447]
[1739879112963,0.156563,95808.0,95807.0,0.0463406]
[1739879114995,0.362563,95808.0,95807.0,0.0003406]
[1739879115197,0.870234,95808.0,95807.0,0.0003406]
[1739879115406,0.88694054,95808.0,95807.0,0.0003406]
[1739879115833,0.92487861,95808.0,95807.0,0.0003406]
[1739879116052,0.46905376,95808.0,95807.0,0.0003406]
[1739879116276,0.46905376,95808.0,95786.0,0.0803]
[1739879116277,0.156589,95792.0,95786.0,0.0803]
[1739879116910,0.87026,95792.0,95786.0,0.0803]
[1739879117148,0.88661893,95792.0,95786.0,0.0803]
[1739879117785,0.17294793,95792.0,95791.0,0.00084099]
[1739879117916,0.01635893,95792.0,95791.0,0.00084099]
[1739879118319,0.01635893,95792.0,95791.0,0.01358509]
[1739879118576,0.01635893,95792.0,95791.0,0.09588509]
[1739879118770,0.01635893,95792.0,95791.0,0.08314099]
[1739879119733,0.01635893,95792.0,95791.0,0.00084099]
[1739879120361,0.73002993,95792.0,95791.0,0.00084099]
[1739879120673,0.65668393,95792.0,95791.0,0.00084099]
[1739879120934,0.01635893,95792.0,95791.0,0.00084099]
[1739879122488,0.01635893,95792.0,95791.0,0.07974099]
[1739879122819,0.306577,95800.0,95791.0,0.07974099]
[1739879123020,0.156582,95797.0,95791.0,0.07974099]
[1739879123419,0.20876,95804.0,95791.0,0.07974099]
[1739879123669,0.306581,95797.0,95791.0,0.07974099]
[1739879123873,0.306581,95797.0,95791.0,0.08008159]
[1739879124327,0.156583,95796.0,95791.0,0.08008159]
[1739879124719,0.208768,95800.0,95791.0,0.08008159]
[1739879124920,0.15,95797.0,95791.0,0.08008159]
[1739879125176,0.306581,95797.0,95791.0,0.08008159]
[1739879125387,0.15,95797.0,95791.0,0.08008159]
[1739879125741,0.01635834,95796.0,95791.0,0.08008159]
[1739879127846,0.01635834,95796.0,95795.0,0.156584]
[1739879129123,0.01635834,95796.0,95795.0,0.00104381]
[1739879129276,0.01635834,95796.0,95795.0,0.15762781]
[1739879129478,0.01635834,95796.0,95795.0,0.00104381]
[1739879130016,0.01635834,95796.0,95792.0,0.00104379]
[1739879130677,0.01635834,95796.0,95793.0,0.00104379]
[1739879131258,0.01635834,95796.0,95793.0,0.00104378]
[1739879131768,0.01635834,95796.0,95791.0,0.08008159]
[1739879132757,0.156576,95800.0,95791.0,0.08008159]
[1739879133150,0.0001703,95806.0,95791.0,0.08008159]
[1739879133357,0.156581,95797.0,95791.0,0.08008159]
[1739879133526,0.0001703,95806.0,95791.0,0.08008159]
[1739879133733,0.156583,95796.0,95791.0,0.08008159]
[1739879133953,0.156584,95795.0,95791.0,0.08008159]
[1739879134511,0.156589,95792.0,95791.0,0.08008159]
[1739879135463,0.208782,95794.0,95791.0,0.08008159]
[1739879135802,0.17294743,95792.0,95791.0,0.08008159]
[1739879136258,0.01635843,95792.0,95791.0,0.08008159]
[1739879136441,0.17294743,95792.0,95791.0,0.08008159]
[1739879137518,0.01635843,95792.0,95791.0,0.08008159]
[1739879139582,0.17294743,95792.0,95791.0,0.08008159]
[1739879142690,0.156589,95792.0,95791.0,0.08008159]
[1739879142897,0.156589,95792.0,95791.0,0.00118159]
[1739879144407,0.306589,95792.0,95791.0,0.00118159]
[1739879145723,0.3229484,95792.0,95791.0,0.00118159]
[1739879146747,2.6141894,95792.0,95791.0,0.00118159]
[1739879146976,3.2789264,95792.0,95791.0,0.00118159]
[1739879147180,0.3229484,95792.0,95791.0,0.00118159]
[1739879147823,3.1609974,95792.0,95791.0,0.00118159]
[1739879148035,0.3229484,95792.0,95791.0,0.00118159]
[1739879148226,3.0816434,95792.0,95791.0,0.00118159]
[1739879148439,3.0716434,95792.0,95791.0,0.00118159]
[1739879148633,2.3855894,95792.0,95791.0,0.00118159]
[1739879148856,2.3531374,95792.0,95791.0,0.00118159]
[1739879151067,2.3551374,95792.0,95791.0,0.00118159]
[1739879151928,2.3571374,95792.0,95791.0,0.00118159]
[1739879152316,2.3531374,95792.0,95791.0,0.00118159]
[1739879152811,2.3581374,95792.0,95791.0,0.00118159]
[1739879153062,2.3561374,95792.0,95791.0,0.00118159]
[1739879153275,2.3581374,95792.0,95791.0,0.00118159]
[1739879155331,1.9915574,95792.0,95791.0,0.00118159]
[1739879155561,1.9865574,95792.0,95791.0,0.00118159]
[1739879155791,1.973198,95792.0,95791.0,0.00118159]
[1739879156000,1.975198,95792.0,95791.0,0.00118159]
[1739879157911,0.311589,95792.0,95791.0,0.00118159]
[1739879158106,3.044488,95792.0,95791.0,0.00118159]
[1739879158256,3.358836,95792.0,95791.0,0.00118159]
[1739879158459,3.356191,95792.0,95791.0,0.00118159]
[1739879158866,4.08622192,95792.0,95791.0,0.00118159]
[1739879159080,5.82266592,95792.0,95791.0,0.00118159]
[1739879159273,5.43769392,95792.0,95791.0,0.00118159]
[1739879159961,5.43583457,95792.0,95791.0,0.00118159]
[1739879160364,5.51253457,95792.0,95791.0,0.00118159]
[1739879161815,5.50753457,95792.0,95791.0,0.00118159]
[1739879161997,5.51853457,95792.0,95791.0,0.00118159]
[1739879162237,5.51353457,95792.0,95791.0,0.00118159]
[1739879162449,5.50753457,95792.0,95791.0,0.00118159]
[1739879162630,5.49617465,95792.0,95791.0,0.00118159]
[1739879162880,5.50317465,95792.0,95791.0,0.00118159]
[1739879165784,5.51953668,95792.0,95791.0,0.00118159]
[1739879165962,5.21294768,95792.0,95791.0,0.00118159]
[1739879166146,5.36953668,95792.0,95791.0,0.00118159]
[1739879169026,5.44283668,95792.0,95791.0,0.00118159]
[1739879169437,5.54534033,95792.0,95791.0,0.00118159]
[1739879169644,1.25362933,95792.0,95791.0,0.00118159]
[1739879169838,0.43745468,95792.0,95791.0,0.00118159]
[1739879170087,5.76818687,95792.0,95791.0,0.00118159]
[1739879170422,5.1546803,95792.0,95791.0,0.00118159]
[1739879172455,5.25718395,95792.0,95791.0,0.00118159]
[1739879172681,5.33478395,95792.0,95791.0,0.00118159]
[1739879173035,5.33478395,95792.0,95791.0,1e-08]
[1739879173260,0.49994803,95792.0,95791.0,1e-08]
[1739879173640,0.4835856,95792.0,95791.0,1e-08]
[1739879175851,0.08031409,95770.0,95760.0,0.3285]
[1739879176092,0.15,95787.0,95762.0,0.0822]
[1739879176300,0.318337,95786.0,95769.0,0.0822]
[1739879176451,0.156615,95777.0,95771.0,0.0822]
[1739879176654,0.15661,95780.0,95771.0,0.0822]
[1739879176864,0.156611,95779.0,95771.0,0.0822]
[1739879177072,0.01636226,95782.0,95773.0,0.0781]
[1739879177432,0.208813,95780.0,95773.0,0.0781]
[1739879177645,0.156615,95776.0,95773.0,0.0781]
[1739879178273,0.208817,95778.0,95773.0,0.0781]
[1739879178471,0.156615,95776.0,95773.0,0.0781]
[1739879178930,0.01636226,95782.0,95773.0,0.0781]
[1739879179106,0.156618,95775.0,95773.0,0.0781]
[1739879179321,0.156618,95774.0,95773.0,0.0781]
[1739879179761,0.156626,95769.0,95768.0,0.0496]
[1739879180586,0.1729897,95769.0,95768.0,0.0496]
[1739879181433,0.01021817,95769.0,95768.0,0.0496]
[1739879181632,1.96974817,95769.0,95768.0,0.0496]
[1739879181841,2.116156,95769.0,95768.0,0.0496]
[1739879182070,1.227202,95769.0,95768.0,0.0506]
[1739879182272,1.227202,95769.0,95768.0,0.0496]
[1739879182678,1.054238,95769.0,95768.0,0.0496]
[1739879182883,0.54464,95769.0,95768.0,0.0496]
[1739879183093,0.475755,95769.0,95768.0,0.0499404]
[1739879183850,0.156626,95769.0,95768.0,0.0499404]
[1739879184137,0.01497404,95769.0,95768.0,0.06274444]
[1739879184547,0.156623,95772.0,95768.0,0.0499404]
[1739879184751,0.208825,95774.0,95768.0,0.0499404]
[1739879184954,0.17298522,95772.0,95768.0,0.0499404]
[1739879185161,0.01636322,95772.0,95768.0,0.0499404]
[1739879186156,0.156626,95769.0,95768.0,0.0499404]
[1739879187361,0.156626,95769.0,95768.0,0.0509404]
[1739879188407,0.156626,95769.0,95768.0,0.0519404]
[1739879190881,0.156626,95769.0,95768.0,0.0023404]
[1739879191084,1.22295,95769.0,95768.0,0.0023404]
[1739879191296,1.38949,95769.0,95768.0,0.0023404]
[1739879191664,1.655737,95769.0,95768.0,0.0023404]
[1739879191823,0.156626,95769.0,95768.0,0.0023404]
[1739879191998,2.28987501,95769.0,95768.0,0.0013404]
[1739879192195,2.238957,95769.0,95768.0,0.0003404]
[1739879192623,2.241957,95769.0,95768.0,0.0003404]
[1739879193445,2.238957,95769.0,95768.0,0.0003404]
[1739879193648,2.241957,95769.0,95768.0,0.0003404]
[1739879194438,2.26031133,95769.0,95768.0,0.0003404]
[1739879194643,2.26431133,95769.0,95768.0,0.0003404]
[1739879194885,2.34491133,95769.0,95768.0,0.0003404]
[1739879195085,2.26431133,95769.0,95768.0,0.0003404]
[1739879196374,2.34002284,95769.0,95768.0,0.0003404]
[1739879196583,2.26431133,95769.0,95768.0,0.0003404]
[1739879197002,2.242957,95769.0,95768.0,0.0003404]
[1739879197186,2.25932173,95769.0,95768.0,0.0003404]
[1739879197693,2.25532173,95769.0,95768.0,0.0003404]
[1739879197895,2.25932173,95769.0,95768.0,0.0003404]
[1739879198100,2.25632173,95769.0,95768.0,0.0003404]
[1739879198484,2.25932173,95769.0,95768.0,0.0003404]
[1739879198899,2.28055253,95769.0,95768.0,0.0003404]
[1739879200853,2.27655253,95769.0,95768.0,0.0003404]
[1739879201076,2.27755253,95769.0,95768.0,0.0003404]
[1739879201326,2.26287553,95769.0,95768.0,0.0003404]
[1739879201530,1.97231153,95769.0,95768.0,0.0003404]
[1739879201737,1.17236653,95769.0,95768.0,0.0003404]
[1739879201939,0.81811153,95769.0,95768.0,0.0003404]
[1739879202149,0.61154973,95769.0,95768.0,0.0003404]
[1739879202393,0.27896173,95769.0,95768.0,0.0003404]
[1739879202612,0.17999073,95769.0,95768.0,0.0003404]
[1739879202811,0.163626,95769.0,95768.0,0.0003404]
[1739879203254,0.166626,95769.0,95768.0,0.0003404]
[1739879203462,0.162626,95769.0,95768.0,0.0003404]
[1739879203674,1.265252,95769.0,95768.0,0.0003404]
[1739879204291,1.258252,95769.0,95768.0,0.0003404]
[1739879204503,1.257252,95769.0,95768.0,0.0003404]
[1739879204938,1.259252,95769.0,95768.0,0.0003404]
[1739879205118,1.805572,95769.0,95768.0,0.0003404]
[1739879205297,0.159626,95769.0,95768.0,0.0003404]
[1739879205510,2.535802,95769.0,95768.0,0.0003404]
[1739879205705,2.49301094,95769.0,95768.0,0.0003404]
[1739879207077,2.49101094,95769.0,95768.0,0.0003404]
[1739879207251,2.49301094,95769.0,95768.0,0.0003404]
[1739879207463,2.49318124,95769.0,95768.0,0.0003404]
[1739879207609,2.49218124,95769.0,95768.0,0.0003404]
[1739879207812,2.49318124,95769.0,95768.0,0.0003404]
[1739879208020,2.24540624,95769.0,95768.0,0.0003404]
[1739879209100,2.23495624,95769.0,95768.0,0.0003404]
[1739879209657,2.23295624,95769.0,95768.0,0.0003404]
[1739879209855,2.23495624,95769.0,95768.0,0.0003404]
[1739879210411,2.21759124,95769.0,95768.0,0.0003404]
[1739879210738,1.25297824,95769.0,95768.0,0.0003404]
[1739879210943,0.80467924,95769.0,95768.0,0.0003404]
[1739879211376,0.60460524,95769.0,95768.0,0.0003404]
[1739879212087,0.5892403,95769.0,95768.0,0.0003404]
[1739879213282,0.33021673,95769.0,95768.0,0.0003404]
[1739879214462,0.48684273,95769.0,95768.0,0.0003404]
[1739879215255,0.50320766,95769.0,95768.0,0.0003404]
[1739879215360,0.34802593,95769.0,95768.0,0.0003404]
[1739879216648,0.34902593,95769.0,95768.0,0.0003404]
[1739879217178,0.34702593,95769.0,95768.0,0.0003404]
[1739879217606,0.34802593,95769.0,95768.0,0.0003404]
[1739879219142,0.34819623,95769.0,95768.0,0.0003404]
[1739879222549,0.17516123,95769.0,95768.0,0.0003404]
[1739879222753,0.1587963,95769.0,95768.0,0.0003404]
[1739879222976,0.3632013,95769.0,95768.0,0.0003404]
[1739879223178,0.4004323,95769.0,95768.0,0.0003404]
[1739879223588,0.1587963,95769.0,95768.0,0.0003404]
[1739879223927,0.0021703,95769.0,95768.0,0.1270404]
[1739879224745,0.0021703,95769.0,95768.0,0.24235251]
[1739879224951,0.0021703,95769.0,95768.0,0.41857939]
[1739879225127,0.0021703,95769.0,95768.0,0.26195139]
[1739879225777,0.01853352,95769.0,95768.0,0.26195139]
[1739879226303,0.01853352,95769.0,95768.0,0.41857939]
[1739879227549,0.01753352,95769.0,95768.0,0.41857939]
[1739879227752,0.01653352,95769.0,95768.0,0.41857939]
[1739879227974,0.01753352,95769.0,95768.0,0.42357939]
[1739879228175,0.01753352,95769.0,95768.0,0.42557939]
[1739879232823,0.0011703,95769.0,95768.0,0.26895139]
[1739879232956,0.0011703,95769.0,95768.0,0.42557939]
[1739879234225,0.0011703,95769.0,95768.0,0.75407939]
[1739879234597,0.0011703,95769.0,95768.0,0.59745139]
[1739879235081,0.0011703,95769.0,95768.0,0.75407939]
[1739879235670,0.0011703,95769.0,95768.0,0.59745139]
[1739879236514,0.0011703,95769.0,95768.0,0.75407939]
[1739879237569,0.0011703,95769.0,95768.0,0.59745139]
[1739879244443,0.0011703,95769.0,95768.0,0.75407939]
[1739879245059,0.0011703,95769.0,95768.0,0.59745139]
[1739879246728,0.0011703,95769.0,95768.0,0.75407939]
[1739879247657,0.0011703,95769.0,95768.0,0.59745139]
[1739879251294,0.0011703,95769.0,95768.0,0.47075139]
[1739879252118,0.0011703,95769.0,95768.0,0.14225139]
[1739879253865,0.0011703,95769.0,95768.0,0.22275139]
[1739879254830,0.0011703,95769.0,95768.0,0.20315251]
[1739879255599,0.0011703,95769.0,95768.0,0.12265251]
[1739879255600,0.1577963,95769.0,95768.0,0.12265251]
[1739879255782,0.17415885,95769.0,95768.0,0.1294559]
[1739879256700,0.01753285,95769.0,95768.0,0.1294559]
[1739879260649,0.17415885,95769.0,95768.0,0.1294559]
[1739879261467,0.01753285,95769.0,95768.0,0.1294559]
[1739879261671,0.01753285,95769.0,95768.0,0.15045149]
[1739879262300,0.01753285,95769.0,95768.0,0.1294559]
[1739879262718,0.0011703,95769.0,95768.0,0.1294559]
[1739879263614,0.1577963,95769.0,95768.0,0.1294559]
[1739879265118,0.1577963,95769.0,95768.0,0.02695225]
[1739879265743,0.17415915,95769.0,95768.0,0.02695225]
[1739879267685,0.208829,95772.0,95768.0,0.02695225]
[1739879267846,0.156626,95769.0,95768.0,0.02695225]
[1739879268449,0.156626,95769.0,95768.0,0.02495225]
[1739879269445,0.156626,95769.0,95768.0,0.02695225]
[1739879274561,0.208829,95772.0,95768.0,0.02695225]
[1739879274755,0.156626,95769.0,95768.0,0.02695225]
[1739879275113,0.156626,95769.0,95768.0,0.0073404]
[1739879275741,0.17298891,95769.0,95768.0,0.0073404]
[1739879276351,0.17298891,95769.0,95768.0,0.0023404]
[1739879276727,0.17298891,95769.0,95768.0,0.0063404]
[1739879276934,0.17298891,95769.0,95768.0,0.02594183]
[1739879277148,0.17298891,95769.0,95768.0,0.02194183]
[1739879277393,0.17398891,95769.0,95768.0,0.02694183]
[1739879277591,0.17398891,95769.0,95768.0,0.02494183]
[1739879277949,0.17298891,95769.0,95768.0,0.02194183]
[1739879278193,0.17298891,95769.0,95768.0,0.02594183]
[1739879282815,0.156626,95769.0,95768.0,0.02594183]
[1739879286867,0.0001703,95771.0,95768.0,0.14408966]
[1739879287069,0.0001703,95771.0,95769.0,0.10354772]
[1739879287268,0.0001703,95771.0,95769.0,0.10250365]
[1739879288620,0.0001703,95771.0,95770.0,0.01960143]
[1739879288828,0.0001703,95771.0,95770.0,0.12210508]
[1739879289107,0.0001703,95771.0,95770.0,0.14946405]
[1739879289553,0.0001703,95771.0,95770.0,0.22640814]
[1739879289777,0.0001703,95771.0,95770.0,0.22736405]
[1739879290473,0.0001703,95771.0,95770.0,0.38698905]
[1739879290916,0.0001703,95771.0,95770.0,0.43418905]
[1739879291968,0.0001703,95771.0,95770.0,0.44202745]
[1739879295605,0.0001703,95771.0,95770.0,0.43418905]
[1739879297428,0.0001703,95771.0,95770.0,0.42918905]
[1739879297836,0.0011703,95771.0,95770.0,0.43118905]
[1739879298680,0.0011703,95771.0,95770.0,0.43902018]
[1739879299233,0.0011703,95771.0,95770.0,0.44402018]
[1739879300310,0.0011703,95771.0,95770.0,0.79552018]
[1739879300519,0.0011703,95771.0,95770.0,0.79586078]
[1739879301128,0.0011703,95771.0,95770.0,0.79086078]
[1739879301544,0.0001703,95771.0,95770.0,0.78886078]
[1739879301966,0.0011703,95771.0,95770.0,0.79586078]
[1739879302564,0.0011703,95771.0,95770.0,0.80286078]
[1739879303122,0.0011703,95771.0,95770.0,0.79586078]
[1739879303344,0.0011703,95771.0,95770.0,0.80286078]
[1739879304109,0.0001703,95771.0,95770.0,0.78886078]
[1739879304588,0.0001703,95771.0,95770.0,0.80286078]
[1739879304737,0.0001703,95771.0,95770.0,0.79586078]
[1739879305160,0.0001703,95771.0,95770.0,0.80286078]
[1739879305933,0.0001703,95771.0,95770.0,0.79586078]
[1739879306317,0.0001703,95771.0,95770.0,0.80286078]
[1739879323991,0.20464403,95798.0,95776.0,0.023]
[1739879324198,0.156582,95797.0,95787.0,0.156597]
[1739879324408,0.156582,95797.0,95788.0,0.10354749]
[1739879324615,0.32445726,95800.0,95788.0,0.10354749]
[1739879324796,0.09414303,95800.0,95790.0,0.156591]
[1739879325171,0.156581,95797.0,95791.0,0.11919164]
[1739879325373,0.156579,95798.0,95791.0,0.11814783]
[1739879325888,0.01635887,95797.0,95791.0,0.11814783]
[1739879326067,0.01635887,95797.0,95791.0,0.27486957]
[1739879326273,0.01635887,95797.0,95792.0,0.02735897]
[1739879326410,0.01635887,95797.0,95793.0,0.10250365]
[1739879327958,0.01635887,95797.0,95794.0,0.01960143]
[1739879328141,0.00527159,95796.0,95795.0,0.10250365]
[1739879328946,0.00527159,95796.0,95795.0,0.12210508]
[1739879329156,0.00527159,95796.0,95795.0,0.17536708]
[1739879329592,0.00527159,95796.0,95795.0,0.17836708]
[1739879330523,0.00527159,95796.0,95795.0,0.12510508]
[1739879331916,0.01635887,95797.0,95795.0,0.12510508]
[1739879332677,0.00531783,95798.0,95795.0,0.12510508]
[1739879332875,0.00531783,95798.0,95795.0,0.12410508]
[1739879333332,0.00531783,95798.0,95795.0,0.12510508]
[1739879333545,0.00531783,95798.0,95796.0,0.01536396]
[1739879333702,0.00531783,95798.0,95797.0,0.10250365]
[1739879334479,0.00531783,95798.0,95797.0,0.12210508]
[1739879335677,0.00531783,95798.0,95797.0,0.12310508]
[1739879335902,0.02167656,95798.0,95797.0,0.12310508]
[1739879336054,0.02167656,95798.0,95797.0,0.13806954]
[1739879336635,0.02184676,95798.0,95797.0,0.13806954]
[1739879337012,0.17842576,95798.0,95797.0,0.13806954]
[1739879342934,0.02184676,95798.0,95797.0,0.13806954]
[1739879343883,0.16206703,95798.0,95797.0,0.13806954]
[1739879345474,0.16206703,95798.0,95797.0,0.13706954]
[1739879345620,0.00548803,95798.0,95797.0,0.13706954]
[1739879345822,0.16206703,95798.0,95797.0,0.13906954]
[1739879346211,0.00548803,95798.0,95797.0,0.13906954]
[1739879346864,0.02184679,95798.0,95797.0,0.13906954]
[1739879347394,0.02184679,95798.0,95797.0,0.14106954]
[1739879347525,0.17842579,95798.0,95797.0,0.14106954]
[1739879348743,0.01652896,95798.0,95797.0,0.14106954]
[1739879348940,0.01652896,95798.0,95797.0,0.29765054]
[1739879349666,0.0001702,95798.0,95797.0,0.29765054]
[1739879349897,0.0001702,95798.0,95797.0,0.29465054]
[1739879350097,0.0001702,95798.0,95797.0,0.30949212]
[1739879350327,0.0001702,95798.0,95797.0,0.30749212]
[1739879350665,0.0001702,95798.0,95797.0,0.31249212]
[1739879350875,0.0001702,95798.0,95797.0,0.35599212]
[1739879351299,0.0001702,95798.0,95797.0,0.36299212]
[1739879351681,0.0001702,95798.0,95797.0,0.35599212]
[1739879352088,0.0001702,95798.0,95797.0,0.20641112]
[1739879352398,0.0001702,95798.0,95797.0,0.36299212]
[1739879352636,0.0001702,95798.0,95797.0,0.35599212]
[1739879354106,0.0001702,95798.0,95797.0,0.36299212]
[1739879354213,0.0001702,95798.0,95797.0,0.35599212]
[1739879354432,0.0001702,95798.0,95797.0,0.36299212]
[1739879355090,0.0001702,95798.0,95797.0,0.35515054]
[1739879356885,0.0001702,95798.0,95797.0,0.19856954]
[1739879357537,0.0001702,95798.0,95797.0,0.35515054]
[1739879357738,0.0001702,95798.0,95797.0,0.13610508]
[1739879360895,0.0001702,95798.0,95797.0,0.35732981]
[1739879361107,0.0001702,95798.0,95797.0,0.40798608]
[1739879361317,0.0001702,95798.0,95797.0,0.41098608]
[1739879361789,0.0001702,95798.0,95797.0,0.40998608]
[1739879361989,0.0001702,95798.0,95797.0,0.41098608]
[1739879362234,0.0001702,95798.0,95797.0,0.41798608]
[1739879362569,0.0001702,95798.0,95797.0,0.42581676]
[1739879363605,0.15655,95816.0,95808.0,0.156561]
[1739879363814,0.16927245,95816.0,95809.0,0.10354727]
[1739879364019,0.16927245,95816.0,95810.0,0.04688623]
[1739879364233,0.01272245,95816.0,95811.0,0.10250365]
[1739879364437,0.156547,95818.0,95812.0,0.156555]
[1739879364645,0.156547,95818.0,95813.0,0.10250365]
[1739879365760,0.08031423,95820.0,95813.0,0.10250365]
[1739879365970,0.01635402,95817.0,95814.0,0.05476077]
[1739879366175,0.01635402,95817.0,95815.0,0.10250365]
[1739879368080,0.01635402,95817.0,95816.0,0.01960143]
[1739879368280,0.17290202,95817.0,95816.0,0.12210508]
[1739879369186,0.17290202,95817.0,95816.0,0.12710508]
[1739879369387,0.17290202,95817.0,95816.0,0.14281559]
[1739879369611,0.17290202,95817.0,95816.0,0.13981559]
[1739879370644,0.17290202,95817.0,95816.0,0.14481559]
[1739879371072,0.17290202,95817.0,95816.0,0.13981559]
[1739879371509,0.17290202,95817.0,95816.0,0.14581559]
[1739879372703,0.156548,95817.0,95816.0,0.14581559]
[1739879373279,0.156548,95817.0,95816.0,0.13310508]
[1739879373484,0.1567182,95817.0,95816.0,0.13310508]
[1739879373944,0.1567182,95817.0,95816.0,0.11350365]
[1739879375841,0.17307245,95817.0,95816.0,0.11350365]
[1739879376502,0.17307245,95817.0,95816.0,0.13307347]
[1739879382692,0.1567182,95817.0,95816.0,0.13307347]
[1739879385756,0.17307205,95817.0,95816.0,0.13307347]
[1739879386035,0.17307205,95817.0,95816.0,0.13341367]
[1739879393047,0.1567182,95817.0,95816.0,0.13341367]
[1739879393244,0.1567182,95817.0,95816.0,0.14675504]
[1739879396125,0.17307262,95817.0,95816.0,0.14675504]
[1739879399912,0.17307262,95817.0,95816.0,0.13341367]
[1739879402655,0.1567182,95817.0,95816.0,0.13341367]
[1739879406261,0.1567182,95817.0,95816.0,0.11384385]
[1739879406694,0.1567182,95817.0,95816.0,0.13345165]
[1739879407246,0.17307227,95817.0,95816.0,0.13345165]
[1739879412667,0.17307227,95817.0,95816.0,0.14679682]
[1739879412818,0.1567182,95817.0,95816.0,0.14679682]
[1739879415495,0.1567182,95817.0,95816.0,0.13345165]
[1739879416774,0.0001702,95817.0,95816.0,0.13345165]
[1739879416998,0.1567182,95817.0,95816.0,0.13345165]
[1739879417724,0.1567182,95817.0,95816.0,0.21155165]
[1739879420739,0.0001702,95817.0,95816.0,0.21155165]
[1739879420940,0.0001702,95817.0,95816.0,0.41482092]
[1739879421570,0.0001702,95817.0,95816.0,0.46162092]
[1739879421987,0.0001702,95817.0,95816.0,0.46946284]
[1739879422409,0.0001702,95817.0,95816.0,0.47703382]
[1739879422670,0.0001702,95817.0,95816.0,0.47103382]
[1739879422915,0.0001702,95817.0,95816.0,0.50439775]
[1739879423510,0.0001702,95817.0,95816.0,0.49739775]
[1739879423855,0.0001702,95817.0,95816.0,0.51139775]
[1739879426232,0.05032115,95840.0,95820.0,0.208724]
[1739879426508,0.156512,95839.0,95821.0,0.15205422]
[1739879426733,0.156512,95839.0,95832.0,0.0824]
[1739879426931,0.156512,95839.0,95833.0,0.10250365]
[1739879427157,0.156516,95837.0,95833.0,0.10250365]
[1739879427433,0.156518,95836.0,95833.0,0.10250365]
[1739879427645,0.156518,95836.0,95834.0,0.03414337]
[1739879427847,0.156518,95836.0,95835.0,0.10250365]
[1739879429053,0.156518,95836.0,95835.0,0.12211145]
[1739879429371,0.156518,95836.0,95835.0,0.12511145]
[1739879429877,0.156518,95836.0,95835.0,0.13011145]
[1739879430092,0.156518,95836.0,95835.0,0.14312259]
[1739879430861,0.0004399,95837.0,95835.0,0.14312259]
[1739879431733,0.0004399,95837.0,95836.0,0.0196078]
[1739879431947,0.0004399,95837.0,95836.0,0.12211145]
[1739879432149,0.0004399,95837.0,95836.0,0.20411145]
[1739879432150,0.00783372,95837.0,95836.0,0.20411145]
[1739879432355,0.00783372,95837.0,95836.0,0.23168805]
[1739879433052,0.00783372,95837.0,95836.0,0.23968805]
[1739879433333,0.00783372,95837.0,95836.0,0.23668805]
[1739879433678,0.00783372,95837.0,95836.0,0.24168805]
[1739879433960,0.16434872,95837.0,95836.0,0.15968805]
[1739879434380,0.16434872,95837.0,95836.0,0.15468805]
[1739879434581,0.16434872,95837.0,95836.0,0.12711145]
[1739879434786,0.16434872,95837.0,95836.0,0.13311145]
[1739879435072,0.16434872,95837.0,95836.0,0.12811145]
[1739879435283,0.16434872,95837.0,95836.0,0.12211145]
[1739879435486,0.16434872,95837.0,95836.0,0.13011145]
[1739879435697,0.16434872,95837.0,95836.0,0.12351479]
[1739879437138,0.16434872,95837.0,95836.0,0.12385499]
[1739879441576,0.00783372,95837.0,95836.0,0.12385499]
[1739879442014,0.00783372,95837.0,95836.0,0.19995499]
[1739879442143,0.00783372,95837.0,95836.0,0.40701532]
[1739879442380,0.00783372,95837.0,95836.0,0.24945499]
[1739879442585,0.00783372,95837.0,95836.0,0.40597199]
[1739879443275,0.00783372,95837.0,95836.0,0.24945499]
[1739879443475,0.00783372,95837.0,95836.0,0.40597199]
[1739879448888,0.00783372,95837.0,95836.0,0.24945499]
[1739879452149,0.00783372,95837.0,95836.0,0.40597199]
[1739879455007,0.00783372,95837.0,95836.0,0.40879946]
[1739879455139,0.00783372,95837.0,95836.0,0.41179946]
[1739879455546,0.00783372,95837.0,95836.0,0.41679946]
[1739879459202,0.00783372,95837.0,95836.0,0.41179946]
[1739879459623,0.00783372,95837.0,95836.0,0.41879946]
[1739879460603,0.00783372,95837.0,95836.0,0.41279946]
[1739879460779,0.08031423,95850.0,95836.0,0.25628246]
[1739879460983,0.08031423,95850.0,95843.0,0.156505]
[1739879461182,0.156496,95849.0,95844.0,0.10250365]
[1739879461388,0.156489,95853.0,95844.0,0.10250365]
[1739879461543,0.208656,95852.0,95844.0,0.10250365]
[1739879461750,0.08031423,95854.0,95844.0,0.10250365]
[1739879461965,0.08031423,95854.0,95845.0,0.16675237]
[1739879462168,0.08031423,95854.0,95846.0,0.25900265]
[1739879462364,0.00512065,95852.0,95846.0,0.10250365]
[1739879462574,0.15649,95853.0,95846.0,0.10250365]
[1739879462872,0.156492,95852.0,95846.0,0.10250365]
[1739879463076,0.156492,95852.0,95847.0,0.04789783]
[1739879463319,0.156492,95852.0,95848.0,0.10250365]
[1739879463526,0.2087799,95855.0,95848.0,0.10250365]
[1739879463720,0.156489,95853.0,95848.0,0.10250365]
[1739879463924,0.2087799,95855.0,95848.0,0.12380152]
[1739879463925,0.20865,95854.0,95848.0,0.12380152]
[1739879464369,0.156491,95853.0,95848.0,0.12380152]
[1739879464546,0.156491,95852.0,95848.0,0.12380152]
[1739879465157,0.156491,95852.0,95848.0,0.12780152]
[1739879465571,0.156492,95851.0,95848.0,0.12780152]
[1739879465768,0.01281136,95855.0,95848.0,0.12780152]
[1739879466012,0.156491,95852.0,95849.0,0.01899497]
[1739879466191,0.156491,95852.0,95850.0,0.10250365]
[1739879466545,0.156492,95851.0,95850.0,0.10250365]
[1739879466743,0.156491,95852.0,95850.0,0.10250365]